fUSD/lending_fUSD_20241028
["ID","MTS","AMOUNT","RATE_DAILY","PERIOD"]
[340942343,1730141436215,-500.0,0.00041147,3]
[340942344,1730141436224,-500.0,0.00041147,3]
[340942345,1730141436233,-703.89,0.00041147,3]
[340942346,1730141436242,-500.0,0.00041147,3]
[340942347,1730141436252,-1052.42,0.00041147,3]
[340942348,1730141436261,-500.0,0.00041147,3]
[340942349,1730141436270,-551.43768943,0.00041147,3]
[340942350,1730141436280,-500.0,0.00041147,3]
[340942351,1730141436289,-297.58179602,0.00041147,3]
[340942352,1730141436298,-500.0,0.00041147,3]
[340942353,1730141436308,-500.0,0.00041147,3]
[340942354,1730141436317,-500.0,0.00041147,3]
[340942355,1730141436326,-435.75180493,0.00041147,3]
[340942356,1730141436335,-500.0,0.00041147,7]
[340942357,1730141436344,-279.71864011,0.00041147,3]
[340942358,1730141436353,-503.31994134,0.00041147,3]
[340942359,1730141436363,-500.0,0.00041147,3]
[340942360,1730141436372,-515.01974664,0.00041147,3]
[340942361,1730141436381,-517.23918602,0.00041147,2]
[340942362,1730141436390,-562.52932627,0.00041147,3]
[340942363,1730141436399,-999.3,0.00041247,3]
[340942364,1730141436408,-200.0,0.00041309,7]
[340942365,1730141436417,-1551.15388561,0.0004131,9]
[340942366,1730141436426,-500.0,0.0004132,2]
[340942367,1730141436436,-500.0,0.0004132,3]
[340942368,1730141436445,-837.07,0.0004132,2]
[340942369,1730141436454,-500.0,0.0004132,3]
[340942370,1730141436464,-625.78512238,0.0004132,3]
[340942371,1730141436473,-500.0,0.0004132,3]
[340942372,1730141436482,-500.0,0.0004132,3]
[340942373,1730141436491,-500.0,0.0004132,3]
[340942374,1730141436644,-500.0,0.0004132,3]
[340942375,1730141436655,-150.0,0.0004132,3]
[340942376,1730141436666,-500.0,0.0004132,3]
[340942377,1730141436676,-500.0,0.0004132,3]
[340942378,1730141436685,-500.0,0.0004132,3]
[340942379,1730141436695,-500.0,0.0004132,3]
[340942380,1730141436705,-500.0,0.0004132,3]
[340942381,1730141436714,-500.0,0.0004132,3]
[340942382,1730141436724,-500.0,0.0004132,3]
[340942383,1730141436733,-500.0,0.0004132,3]
[340942384,1730141436743,-500.0,0.0004132,3]
[340942385,1730141436753,-500.0,0.0004132,3]
[340942386,1730141436763,-500.0,0.0004132,3]
[340942387,1730141436772,-1511.59,0.0004132,120]
[340942388,1730141436781,-507.33684744,0.0004132,3]
[340942389,1730141436790,-500.0,0.0004132,3]
[340942390,1730141436799,-500.0,0.0004132,3]
[340942391,1730141436808,-500.0,0.0004132,3]
[340942392,1730141436817,-500.0,0.0004132,3]
[340942393,1730141436827,-1050.87,0.0004132,3]
[340942394,1730141436836,-500.0,0.0004132,3]
[340942395,1730141436845,-515.93,0.0004132,3]
[340942396,1730141436854,-2055.95,0.0004132,3]
[340942397,1730141436864,-960.98,0.0004132,3]
[340942398,1730141436873,-500.0,0.0004132,3]
[340942399,1730141436882,-500.0,0.0004132,3]
[340942400,1730141436892,-500.0,0.0004132,3]
[340942401,1730141436901,-500.0,0.0004132,3]
[340942402,1730141436910,-500.0,0.0004132,3]
[340942403,1730141436919,-162.5,0.00041397,30]
[340942404,1730141436928,-1551.15388561,0.00041411,9]
[340942405,1730141436938,-500.0,0.00041421,3]
[340942406,1730141436947,-500.0,0.00041421,3]
[340942407,1730141436956,-1819.07,0.00041421,3]
[340942408,1730141436966,-518.81913652,0.00041421,3]
[340942409,1730141436975,-500.0,0.00041421,3]
[340942410,1730141436984,-500.0,0.00041421,3]
[340942411,1730141436993,-500.0,0.00041421,3]
[340942412,1730141437002,-582.55,0.00041421,3]
[340942413,1730141437011,-500.0,0.00041421,3]
[340942414,1730141437021,-500.0,0.00041421,3]
[340942415,1730141437030,-500.0,0.00041421,3]
[340942416,1730141437039,-500.0,0.00041421,3]
[340942417,1730141437048,-500.0,0.00041421,3]
[340942418,1730141437057,-703.89,0.00041421,3]
[340942419,1730141437066,-500.0,0.00041421,3]
[340942420,1730141437075,-1052.42,0.00041421,3]
[340942421,1730141437084,-500.0,0.00041421,3]
[340942422,1730141437093,-500.0,0.00041421,3]
[340942423,1730141437102,-500.0,0.00041421,3]
[340942424,1730141437112,-500.0,0.00041421,3]
[340942425,1730141437121,-500.0,0.00041421,3]
[340942426,1730141437130,-500.0,0.00041421,7]
[340942427,1730141437139,-362.49281617,0.00041421,3]
[340942428,1730141437148,-284.484778,0.00041421,14]
[340942429,1730141437157,-711.06910592,0.0004152,120]
[340942430,1730141437167,-999.3,0.00041521,3]
[340942431,1730141437176,-2691.6,0.0004157,7]
[340942432,1730141437186,-1551.15388561,0.00041584,9]
[340942433,1730141437195,-500.0,0.00041594,2]
[340942434,1730141437204,-500.0,0.00041594,3]
[340942435,1730141437213,-837.07,0.00041594,2]
[340942436,1730141437222,-500.0,0.00041594,3]
[340942437,1730141437231,-500.0,0.00041594,3]
[340942438,1730141437240,-500.0,0.00041594,3]
[340942439,1730141437249,-500.0,0.00041594,3]
[340942440,1730141437259,-500.0,0.00041594,3]
[340942441,1730141437268,-150.0,0.00041594,3]
[340942442,1730141437278,-500.0,0.00041594,3]
[340942443,1730141437287,-500.0,0.00041594,3]
[340942444,1730141437297,-151.0,0.00041594,14]
[340942445,1730141437306,-586.11274936,0.00041594,3]
[340942446,1730141437315,-151.0,0.00041594,7]
[340942447,1730141437325,-500.0,0.00041594,3]
[340942448,1730141437334,-500.0,0.00041594,3]
[340942449,1730141437343,-500.0,0.00041594,3]
[340942450,1730141437352,-500.0,0.00041594,3]
[340942451,1730141437361,-500.0,0.00041594,3]
[340942452,1730141437371,-500.0,0.00041594,3]
[340942453,1730141437380,-500.0,0.00041594,3]
[340942454,1730141437389,-500.0,0.00041594,3]
[340942455,1730141437399,-1511.59,0.00041594,120]
[340942456,1730141437408,-500.0,0.00041594,3]
[340942457,1730141437417,-500.0,0.00041594,3]
[340942458,1730141437427,-500.0,0.00041594,3]
[340942459,1730141437437,-500.0,0.00041594,3]
[340942460,1730141437446,-1050.87,0.00041594,3]
[340942461,1730141437455,-500.0,0.00041594,3]
[340942462,1730141437465,-515.93,0.00041594,3]
[340942463,1730141437474,-2055.95,0.00041594,3]
[340942464,1730141437484,-960.98,0.00041594,3]
[340942465,1730141437493,-500.0,0.00041594,3]
[340942466,1730141437502,-423.1729625,0.00041594,3]
[340942467,1730141437512,-500.0,0.00041594,3]
[340942468,1730141437521,-500.0,0.00041594,3]
[340942469,1730141437530,-500.0,0.00041594,3]
[340942470,1730141437540,-1551.15388561,0.00041685,9]
[340942471,1730141437549,-500.0,0.00041695,3]
[340942472,1730141437559,-500.0,0.00041695,3]
[340942473,1730141437568,-1819.07,0.00041695,3]
[340942474,1730141437577,-500.0,0.00041695,3]
[340942475,1730141437586,-500.0,0.00041695,3]
[340942476,1730141437595,-500.0,0.00041695,3]
[340942477,1730141437604,-582.55,0.00041695,3]
[340942478,1730141437612,-508.1042908,0.00041695,3]
[340942479,1730141437622,-500.0,0.00041695,3]
[340942480,1730141437631,-151.0,0.00041695,14]
[340942481,1730141437640,-500.0,0.00041695,3]
[340942482,1730141437649,-500.0,0.00041695,3]
[340942483,1730141437659,-630.49882084,0.00041695,3]
[340942484,1730141437671,-703.89,0.00041695,3]
[340942485,1730141437680,-151.0,0.00041695,7]
[340942486,1730141437691,-500.0,0.00041695,3]
[340942487,1730141437699,-1052.42,0.00041695,3]
[340942488,1730141437708,-502.74971829,0.00041695,3]
[340942490,1730141437717,-500.0,0.00041695,3]
[340942491,1730141437726,-500.0,0.00041695,3]
[340942493,1730141437735,-500.0,0.00041695,3]
[340942494,1730141437745,-500.0,0.00041695,3]
[340942495,1730141437754,-253.56344583,0.00041695,7]
[340942496,1730141437763,-412.10159653,0.00041718,9]
[340942498,1730141437843,-309.4967883,0.00040773,2]
[340942499,1730141437852,-1139.05228908,0.00041718,9]
[340942500,1730141437861,-856.05591166,0.00041724,120]
[340942501,1730141437872,-790.87735512,0.00041724,120]
[340942502,1730141437882,-162.5,0.00041726,30]
[340942503,1730141437891,-1000.0,0.00041728,2]
[340942504,1730141437900,-1000.0,0.00041728,2]
[340942505,1730141437909,-1000.0,0.00041728,2]
[340942506,1730141437918,-1000.0,0.00041728,2]
[340942507,1730141437927,-1000.0,0.00041728,2]
[340942508,1730141437938,-1000.0,0.00041728,2]
[340942509,1730141437947,-1000.0,0.00041728,2]
[340942510,1730141437956,-1000.0,0.00041728,2]
[340942511,1730141437965,-1000.0,0.00041728,2]
[340942512,1730141437974,-1000.0,0.00041728,2]
[340942513,1730141437983,-1000.0,0.00041728,2]
[340942514,1730141437993,-595.0,0.00041728,2]
[340942515,1730141438002,-151.0,0.0004179,14]
[340942516,1730141438012,-1551.15388561,0.0004179,9]
[340942517,1730141438023,-999.3,0.00041795,3]
[340942518,1730141438034,-15445.0,0.000418,30]
[340942519,1730141438043,-8300.0,0.000418,15]
[340942520,1730141438054,-1551.15388561,0.00041858,9]
[340942521,1730141438063,-500.0,0.00041868,2]
[340942522,1730141438073,-500.0,0.00041868,3]
[340942523,1730141438082,-837.07,0.00041868,2]
[340942524,1730141438091,-500.0,0.00041868,3]
[340942525,1730141438100,-367.52889021,0.00041868,3]
[340942526,1730141438109,-331.76695854,0.00041868,3]
[340942527,1730141438118,-500.0,0.00041868,3]
[340942528,1730141438127,-500.0,0.00041868,3]
[340942529,1730141438137,-150.0,0.00041868,3]
[340942530,1730141438146,-500.0,0.00041868,3]
[340942531,1730141438155,-500.0,0.00041868,3]
[340942532,1730141438164,-151.0,0.00041868,14]
[340942533,1730141438175,-500.0,0.00041868,3]
[340942534,1730141438186,-170.80686242,0.00041868,3]
[340942535,1730141438195,-500.0,0.00041868,3]
[340942536,1730141438204,-500.0,0.00041868,3]
[340942537,1730141438213,-500.0,0.00041868,3]
[340942538,1730141438222,-500.0,0.00041868,3]
[340942539,1730141438231,-500.0,0.00041868,3]
[340942540,1730141438240,-500.0,0.00041868,3]
[340942541,1730141438249,-1511.59,0.00041868,120]
[340942542,1730141438259,-500.0,0.00041868,3]
[340942543,1730141438268,-500.0,0.00041868,3]
[340942544,1730141438277,-284.484778,0.00041868,14]
[340942545,1730141438287,-266.92729993,0.00041868,3]
[340942546,1730141438296,-500.0,0.00041868,3]
[340942547,1730141438305,-1050.87,0.00041868,3]
[340942548,1730141438314,-556.47760169,0.00041868,3]
[340942549,1730141438323,-515.93,0.00041868,3]
[340942550,1730141438333,-2055.95,0.00041868,3]
[340942551,1730141438343,-960.98,0.00041868,3]
[340942552,1730141438353,-500.0,0.00041868,3]
[340942553,1730141438362,-500.0,0.00041868,3]
[340942554,1730141438371,-500.0,0.00041868,3]
[340942555,1730141438381,-500.0,0.00041868,3]
[340942556,1730141438390,-2724.15095168,0.0004187,9]
[340942557,1730141438403,-1023.36525247,0.0004187,9]
[340942558,1730141438414,-905.94545268,0.0004187,9]
[340942559,1730141438424,-86.25826334,0.00041873,2]
[340942561,1730141438527,-388.78934152,0.00041873,2]
[340942563,1730141438537,-81.84515144,0.00041873,10]
[340942565,1730141438549,-418.15484856,0.00041873,10]
[340942567,1730141438558,-234.84515144,0.00041873,10]
[340942569,1730141438569,-268.51552369,0.00041873,10]
[340942571,1730141438578,-159.711936,0.00041873,10]
[340942573,1730141438588,-509.25860321,0.00041873,10]
[340942575,1730141438597,-678.40742787,0.00041879,120]
[340942577,1730141438607,-1656.665878,0.00041879,120]
[340942579,1730141438618,-945.00010068,0.00041879,120]
[340942582,1730141438637,-3199.00243035,0.00041879,120]
[340942584,1730141438648,-1020.9241631,0.00041879,120]
[340942586,1730141438659,-49891.27159994,0.0004188,2]
[340942588,1730141438672,-151.44,0.0004188,14]
[340942590,1730141438682,-151.0,0.0004188,7]
[340942592,1730141438693,-209.116046,0.0004188,7]
[340942594,1730141438702,-1551.15388561,0.0004189,9]
[340942596,1730141438713,-182.92417128,0.00041899,16]
[340942599,1730141438722,-11533.0,0.000419,5]
[340942600,1730141438731,-151.0,0.000419,14]
[340942602,1730141438743,-169.2872487,0.000419,5]
[340942605,1730141438752,-12400.0,0.000419,15]
[340942607,1730141438762,-628.76,0.00041919,2]
[340942609,1730141438771,-500.0,0.00041969,3]
[340942611,1730141438781,-500.0,0.00041969,3]
[340942613,1730141438791,-1819.07,0.00041969,3]
[340942614,1730141438800,-500.0,0.00041969,3]
[340942616,1730141438810,-523.90303853,0.00041969,3]
[340942618,1730141438819,-500.0,0.00041969,3]
[340942621,1730141438829,-582.55,0.00041969,3]
[340942623,1730141438838,-500.0,0.00041969,3]
[340942625,1730141438847,-558.97256811,0.00041969,3]
[340942627,1730141438856,-500.0,0.00041969,3]
[340942629,1730141438866,-703.89,0.00041969,3]
[340942631,1730141438875,-506.17098547,0.00041969,3]
[340942633,1730141438884,-1052.42,0.00041969,3]
[340942634,1730141438893,-500.0,0.00041969,3]
[340942636,1730141438903,-500.0,0.00041969,3]
[340942639,1730141438912,-500.0,0.00041969,3]
[340942641,1730141438921,-300.658812,0.00041969,14]
[340942643,1730141438930,-519.22272088,0.00041969,3]
[340942644,1730141438941,-198.0,0.0004197,7]
[340942647,1730141438951,-1551.15388561,0.0004197,9]
[340942649,1730141438961,-7808.64560667,0.0004198,7]
[340942651,1730141438970,-284.484778,0.0004198,14]
[340942652,1730141438979,-4653.46165683,0.0004199,9]
[340942654,1730141438988,-154.8045576,0.00042,2]
[340942656,1730141438998,-6802.08637639,0.00042,30]
[340942659,1730141439010,-13723.7360816,0.00042,30]
[340942661,1730141439019,-30266.5616643,0.00042,2]
[340942663,1730141439030,-1739.98334357,0.00042,2]
[340942665,1730141439039,-1065.44388761,0.00042,2]
[340942667,1730141439048,-500.0,0.00042,120]
[340942669,1730141439058,-576.0,0.00042,2]
[340942671,1730141439067,-151.0,0.00042,7]
[340942673,1730141439076,-162.5,0.00042027,30]
[340942675,1730141439086,-999.3,0.00042069,3]
[340942677,1730141439097,-500.0,0.00042142,2]
[340942680,1730141439107,-500.0,0.00042142,3]
[340942682,1730141439116,-837.07,0.00042142,2]
[340942684,1730141439125,-500.0,0.00042142,3]
[340942686,1730141439134,-500.0,0.00042142,3]
[340942688,1730141439144,-241.05176979,0.00042142,3]
[340942690,1730141439156,-258.94823021,0.00042142,3]
[340942692,1730141439165,-150.0,0.00042142,3]
[340942694,1730141439174,-302.03800294,0.00042142,3]
[340942696,1730141439184,-500.0,0.00042142,3]
[340942698,1730141439193,-500.0,0.00042142,3]
[340942700,1730141439202,-500.0,0.00042142,3]
[340942702,1730141439211,-500.0,0.00042142,3]
[340942704,1730141439220,-255.08776718,0.00042142,3]
[340942706,1730141439231,-244.91223282,0.00042142,3]
[340942708,1730141439243,-500.0,0.00042142,3]
[340942710,1730141439253,-500.0,0.00042142,3]
[340942712,1730141439263,-500.0,0.00042142,3]
[340942714,1730141439273,-1511.59,0.00042142,120]
[340942716,1730141439282,-508.09297906,0.00042142,3]
[340942719,1730141439293,-500.0,0.00042142,3]
[340942721,1730141439302,-500.0,0.00042142,3]
[340942739,1730141439461,-381.43148754,0.00042142,3]
[340942741,1730141439474,-610.82407843,0.00042142,3]
[340942744,1730141439487,-58.61443403,0.00042142,3]
[340942746,1730141439496,-515.93,0.00042142,3]
[340942748,1730141439505,-2055.95,0.00042142,3]
[340942750,1730141439515,-960.98,0.00042142,3]
[340942752,1730141439525,-500.0,0.00042142,3]
[340942754,1730141439534,-500.0,0.00042142,3]
[340942756,1730141439543,-500.0,0.00042142,3]
[340942758,1730141439555,-500.0,0.00042142,3]
[340942760,1730141439564,-150.0,0.00042177,2]
[340942762,1730141439573,-199.80190916,0.00042192,30]
[340942764,1730141439582,-1000.0,0.000422,2]
[340942766,1730141439592,-1551.15388561,0.00042233,9]
[340942768,1730141439601,-151.0,0.00042243,14]
[340942770,1730141439610,-70.82359579,0.00042243,3]
[340942772,1730141439622,-429.17640421,0.00042243,3]
[340942774,1730141439631,-500.0,0.00042243,3]
[340942776,1730141439641,-1819.07,0.00042243,3]
[340942779,1730141439652,-500.0,0.00042243,3]
[340942781,1730141439662,-625.27565353,0.00042243,3]
[340942783,1730141439675,-582.55,0.00042243,3]
[340942785,1730141439686,-258.59357455,0.00042243,3]
[340942787,1730141439695,-500.0,0.00042243,3]
[340942789,1730141439705,-703.89,0.00042243,3]
[340942791,1730141439715,-1052.42,0.00042243,3]
[340942794,1730141439724,-500.0,0.00042243,3]
[340942796,1730141439733,-500.0,0.00042243,3]
[340942800,1730141439745,-356.1151911,0.00042243,3]
[340942803,1730141439755,-200.0,0.00042264,4]
[340942805,1730141439764,-200.0,0.00042274,4]
[340942807,1730141439773,-378.95415535,0.00042287,4]
[340942809,1730141439783,-378.95415535,0.00042291,4]
[340942811,1730141439793,-4083.48462169,0.00042293,4]
[340942813,1730141439802,-1463.46,0.000423,2]
[340942815,1730141439811,-1112.48125609,0.00042303,9]
[340942817,1730141439823,-438.67262952,0.00042303,9]
[340942819,1730141439833,-284.484778,0.00042313,14]
[340942821,1730141439841,-3666.01851405,0.00042313,4]
[340942823,1730141439853,-2661.72241093,0.00042313,4]
[340942825,1730141439862,-4083.48462169,0.00042315,4]
[340942828,1730141439872,-6327.74092498,0.00042317,4]
[340942831,1730141439882,-200.0,0.00042324,4]
[340942834,1730141439891,-200.0,0.00042328,4]
[340942836,1730141439900,-200.0,0.00042342,4]
[340942840,1730141439910,-999.3,0.00042343,3]
[340942843,1730141439920,-1551.15388561,0.00042353,9]
[340942845,1730141439930,-162.5,0.00042356,30]
[340942847,1730141439939,-378.95415535,0.00042358,4]
[340942849,1730141439949,-6327.74092498,0.00042363,4]
[340942851,1730141439960,-4083.48462169,0.00042368,4]
[340942853,1730141439969,-6327.74092498,0.00042378,4]
[340942855,1730141439978,-200.0,0.00042403,4]
[340942857,1730141439988,-200.0,0.00042405,4]
[340942859,1730141439997,-1551.15388561,0.00042406,9]
[340942862,1730141440006,-7500.0,0.00042415,120]
[340942865,1730141440015,-500.0,0.00042416,2]
[340942867,1730141440024,-500.0,0.00042416,3]
[340942869,1730141440033,-837.07,0.00042416,2]
[340942871,1730141440043,-562.96931407,0.00042416,3]
[340942873,1730141440052,-500.0,0.00042416,3]
[340942875,1730141440062,-500.0,0.00042416,3]
[340942877,1730141440071,-204.45782563,0.00042416,3]
[340942879,1730141440080,-500.0,0.00042416,3]
[340942881,1730141440089,-500.0,0.00042416,3]
[340942883,1730141440098,-500.0,0.00042416,3]
[340942885,1730141440108,-500.0,0.00042416,3]
[340942887,1730141440117,-517.6259534,0.00042416,3]
[340942889,1730141440126,-500.0,0.00042416,3]
[340942891,1730141440136,-500.0,0.00042416,3]
[340942893,1730141440146,-500.0,0.00042416,3]
[340942895,1730141440155,-1511.59,0.00042416,120]
[340942897,1730141440165,-205.34498901,0.00042416,3]
[340942899,1730141440174,-500.0,0.00042416,3]
[340942901,1730141440184,-1050.87,0.00042416,3]
[340942903,1730141440194,-515.93,0.00042416,3]
[340942905,1730141440203,-2055.95,0.00042416,3]
[340942907,1730141440213,-960.98,0.00042416,3]
[340942909,1730141440222,-500.0,0.00042416,3]
[340942911,1730141440231,-500.0,0.00042416,3]
[340942913,1730141440240,-500.0,0.00042416,3]
[340942915,1730141440249,-500.0,0.00042416,3]
[340942917,1730141440259,-200.0,0.00042421,4]
[340942919,1730141440268,-4083.48462169,0.00042421,4]
[340942921,1730141440277,-4083.48462169,0.00042423,4]
[340942923,1730141440286,-378.95415535,0.00042426,4]
[340942925,1730141440296,-151.0,0.00042427,7]
[340942927,1730141440305,-4083.48462169,0.00042427,4]
[340942929,1730141440314,-6327.74092498,0.00042438,4]
[340942931,1730141440323,-10161.83,0.00042445,120]
[340942933,1730141440333,-6327.74092498,0.00042446,4]
[340942935,1730141440342,-200.0,0.00042447,4]
[340942937,1730141440351,-4884.68163629,0.00042449,2]
[340942939,1730141440361,-195645.98042721,0.00042449,2]
[340942941,1730141440371,-6682.06574465,0.00042449,6]
[340942943,1730141440380,-12188.59890728,0.0004245,120]
[340942945,1730141440390,-6682.06574465,0.00042457,6]
[340942947,1730141440399,-151.0,0.00042457,14]
[340942949,1730141440408,-284.484778,0.00042462,14]
[340942951,1730141440417,-378.95415535,0.00042462,4]
[340942953,1730141440427,-500.0,0.00042466,120]
[340942955,1730141440436,-500.0,0.00042466,120]
[340942957,1730141440445,-500.0,0.00042466,120]
[340942959,1730141440454,-500.0,0.00042466,120]
[340942961,1730141440463,-500.0,0.00042466,120]
[340942963,1730141440472,-697.778,0.00042466,120]
[340942965,1730141440481,-378.95415535,0.00042467,4]
[340942967,1730141440490,-200.0,0.00042467,4]
[340942969,1730141440499,-200.0,0.00042473,4]
[340942971,1730141440508,-61498.23450323,0.00042477,6]
[340942973,1730141440518,-151.0,0.00042477,7]
[340942975,1730141440527,-2371.65581342,0.0004248,6]
[340942977,1730141440536,-151.0,0.0004248,14]
[340942979,1730141440545,-284.484778,0.0004248,14]
[340942981,1730141440554,-37845.91073305,0.0004248,6]
[340942983,1730141440563,-3657.84694338,0.00042482,4]
[340942985,1730141440572,-620.10679974,0.00042482,6]
[340942987,1730141440582,-620.10679974,0.00042483,6]
[340942989,1730141440591,-7500.0,0.00042483,120]
[340942991,1730141440600,-2371.65581342,0.00042484,6]
[340942992,1730141440609,-200.0,0.00042484,4]
[340942995,1730141440618,-284.484778,0.00042484,14]
[340942997,1730141440627,-6682.06574465,0.00042485,6]
[340942999,1730141440636,-4396.40909784,0.00042486,6]
[340943001,1730141440645,-200.0,0.00042488,4]
[340943003,1730141440654,-2371.65581342,0.0004249,6]
[340943005,1730141440665,-150.0,0.0004249,14]
[340943006,1730141440674,-7500.0,0.00042491,120]
[340943009,1730141440683,-620.10679974,0.00042492,6]
[340943010,1730141440694,-151.0,0.00042492,14]
[340943011,1730141440703,-237.482466,0.00042492,7]
[340943012,1730141440713,-284.484774,0.00042492,14]
[340943013,1730141440722,-2311.58297058,0.00042492,4]
[340943014,1730141440742,-20685.37840729,0.00042492,4]
[340943015,1730141440763,-2715.36069709,0.00042492,4]
[340943016,1730141440775,-18120.22956798,0.00042492,4]
[340943017,1730141440785,-1105.0705494,0.00042492,4]
[340943228,1730141442983,-1217.76054587,0.00040399,2]
[340943238,1730141443243,-24974.60635413,0.00040399,2]
[340943239,1730141443253,-1132.18,0.00040498,2]
[340943240,1730141443263,-151.0,0.00040873,14]
[340943241,1730141443273,-1006.64831908,0.00041642,5]
[340943242,1730141443283,-77111.0790839,0.00042492,4]
[340943243,1730141443293,-5985.56772561,0.00042495,6]
[340943244,1730141443303,-4954.71539203,0.00042495,7]
[340943245,1730141443312,-5985.56772561,0.00042495,6]
[340943246,1730141443323,-7500.0,0.00042495,120]
[340943247,1730141443332,-110365.31805256,0.00042496,6]
[340943249,1730141444595,150.0,0.00017605,2]
[340943268,1730141446416,-500.0,0.00040498,3]
[340943270,1730141446426,-1132.18,0.00040772,2]
[340943272,1730141446436,-151.0,0.000409,14]
[340943274,1730141446447,-151.0,0.00041046,14]
[340943276,1730141446456,-1132.18,0.00041046,2]
[340943278,1730141446466,-1132.18,0.0004132,2]
[340943280,1730141446475,-151.0,0.00041594,14]
[340943282,1730141446484,-1132.18,0.00041594,2]
[340943284,1730141446494,-1132.18,0.00041868,2]
[340943286,1730141446503,-500.0,0.00041873,10]
[340943288,1730141446513,-151.0,0.00041879,14]
[340943290,1730141446522,-151.0,0.0004199,14]
[340943292,1730141446532,-1132.18,0.00042142,2]
[340943295,1730141446541,-151.0,0.00042313,14]
[340943297,1730141446551,-1132.18,0.00042416,2]
[340943299,1730141446561,-151.0,0.00042457,14]
[340943301,1730141446570,-151.0,0.0004248,14]
[340943303,1730141446579,-175.0,0.00042492,7]
[340943305,1730141446589,-151.0,0.00042492,14]
[340943307,1730141446598,-89350.73858135,0.00042496,6]
[340943309,1730141446608,-289.924598,0.00042496,14]
[340943310,1730141446618,-339.08,0.000425,30]
[340943312,1730141446627,-500.0,0.00042517,3]
[340943313,1730141446636,-500.0,0.00042517,3]
[340943315,1730141446645,-1819.07,0.00042517,3]
[340943317,1730141446655,-500.0,0.00042517,3]
[340943319,1730141446665,-582.55,0.00042517,3]
[340943321,1730141446675,-500.0,0.00042517,3]
[340943323,1730141446685,-703.89,0.00042517,3]
[340943325,1730141446694,-1052.42,0.00042517,3]
[340943327,1730141446704,-500.0,0.00042517,3]
[340943329,1730141446714,-500.0,0.00042517,3]
[340943331,1730141446723,-30225.0,0.000426,120]
[340943333,1730141446732,-999.3,0.00042617,3]
[340943335,1730141446742,-176.44,0.00042655,2]
[340943337,1730141446751,-162.5,0.00042658,30]
[340943339,1730141446762,-500.0,0.0004269,3]
[340943341,1730141446772,-500.0,0.0004269,3]
[340943343,1730141446781,-500.0,0.0004269,3]
[340943345,1730141446791,-596.03664736,0.0004269,3]
[340943347,1730141446799,-500.0,0.0004269,3]
[340943349,1730141446809,-500.0,0.0004269,3]
[340943351,1730141446818,-500.0,0.0004269,3]
[340943353,1730141446830,-500.0,0.0004269,3]
[340943356,1730141446841,-500.0,0.0004269,3]
[340943357,1730141446851,-1511.59,0.0004269,120]
[340943358,1730141446862,-355.25711409,0.0004269,3]
[340943359,1730141446872,-1050.87,0.0004269,3]
[340943360,1730141446881,-515.93,0.0004269,3]
[340943361,1730141446891,-2055.95,0.0004269,3]
[340943362,1730141446901,-960.98,0.0004269,3]
[340943363,1730141446910,-500.0,0.0004269,3]
[340943364,1730141446920,-500.0,0.0004269,3]
[340943365,1730141446930,-500.0,0.0004269,3]
[340943366,1730141446939,-500.0,0.0004269,3]
[340943367,1730141446949,-1132.18,0.0004269,2]
[340943368,1730141446958,-500.0,0.00042791,3]
[340943369,1730141446968,-500.6142965,0.00042791,3]